Cogmind - Beta 10 @@@ ROGUE MODE // 2020.09.16 @ 22:32:15 // Winter2019/RPGLIKE Player: Torako Result: Destroyed by as-19625 with Assembled Blade Performance ------------- Evolutions (0) 0 Regions Visited (3) 600 Robots Destroyed (24) 120 Value Destroyed (285) 285 Prototype IDs (26) 520 Alien Tech Used (0) 0 Bonus (-189) -189 TOTAL SCORE: 1336 Bonus ------- Aligned with FarCom 300 Friendly Fire -489 Cogmind --------- Core Integrity 0/950 Matter 255/300 Energy 265/265 System Corruption 2% Temperature Cool (0) Movement Flying (37) Location -10/Exiles Parts ------- > --- POWER (1) -------- Improved Ion Engine > --- PROPULSION (2) --- Flight Unit Flight Unit > --- UTILITY (3) ------ Experimental Sensor Array 0b10 Alert Chip > --- WEAPON (2) ------- Mining Claw Longsword +1 > --- INVENTORY (1) ---- Skeleton Box Peak State ------------ > --- POWER ------------ Improved Ion Engine > --- PROPULSION ------- Flight Unit Flight Unit > --- UTILITY ---------- Experimental Sensor Array 0b10 Alert Chip Weapon Shielding > --- WEAPON ----------- Spread Laser Longsword +1 > --- INVENTORY -------- Mining Claw [Rating: 27] Favorites ----------- Power Improved Ion Engine Engine Improved Ion Engine Propulsion Flight Unit Flight Unit Flight Unit Utility Experimental Sensor Array Device Experimental Sensor Array Storage Small Battery Processor Signal Interpreter Protection Weapon Shielding Weapon Spread Laser Energy Gun Spread Laser Slashing Weapon Longsword +1 Build | -11 -10 -10 -10 ------- Run | Scr Mat Min Exi Slots Evolved 4 | 3 . 1 . Power . | . . . . Propulsion 1 | . . 1 . Utility 2 | 2 . . . Weapon 1 | 1 . . . Parts Attached 19 | 3 7 5 4 Power 2 | 1 1 . . Engine 2 | 1 1 . . Core . | . . . . Reactor . | . . . . Propulsion 3 | . 1 2 . Treads . | . . . . Leg . | . . . . Wheel . | . . . . Hover . | . . . . Flight 3 | . 1 2 . Utility 8 | . 3 3 2 Device 1 | . . 1 . Storage 1 | . 1 . . Processor 2 | . 1 . 1 Hackware . | . . . . Protection 4 | . 1 2 1 Artifact . | . . . . Weapon 6 | 2 2 . 2 Energy Gun 4 | 2 2 . . Energy Cannon . | . . . . Ballistic Gun . | . . . . Ballistic Cannon . | . . . . Launcher . | . . . . Special Weapon . | . . . . Impact Weapon . | . . . . Slashing Weapon 2 | . . . 2 Piercing Weapon . | . . . . Special Melee Weapon . | . . . . Unidentified Prototypes 1 | . . 1 . Parts Lost 1 | . . . 1 Power . | . . . . Propulsion . | . . . . Utility 1 | . . . 1 Weapon . | . . . . Highest Loss Streak 1 | . . . 1 Average Slot Usage (%) 93 | . 77 97 98 Engine 13 | . 14 12 12 Flight 17 | . 9 17 25 Device 7 | . . 9 12 Storage 3 | . 6 3 . Processor 7 | . 12 6 6 Protection 16 | . 4 20 17 Energy Gun 24 | . 28 26 13 Slashing Weapon 1 | . . . 11 Naked Turns . | . . . . Heaviest Build 19 | 6 19 19 16 Greatest Support 18 | 8 9 18 18 Greatest Overweight (x) 2 | . 2 2 . Average Overweight (x) . | . . . . Largest Inventory Capacity 1 | 1 1 1 1 Average Capacity . | . 1 1 1 Most Carried 1 | . 1 1 1 Average Carried . | . . 1 . Final Capacity 1 | 1 1 1 1 Final Carried 1 | . 1 1 1 Class Distribution -------------------- 100% | Mutant Dominant Class ---------------- Mutant | -10/Materials Mutant | -10/Mines Mutant | -10/Exiles Resources | -11 -10 -10 -10 ----------- Run | Scr Mat Min Exi Matter Collected 340 | 230 20 90 . Remotely . | . . . . Salvage Created 330 | . 165 165 . Parts 21 | . 7 14 . Haulers Intercepted . | . . . . Recyclers Shooed 2 | . . 2 . Parts Field Recycled . | . . . . Retrieved Matter . | . . . . Parts Self-Destructed . | . . . . Prevented . | . . . . Kills | -11 -10 -10 -10 ------- Run | Scr Mat Min Exi Combat Hostiles Destroyed 23 | . 5 18 . Melee 1 | . . 1 . Guns 21 | . 4 17 . Classes Destroyed 6 | . 2 4 . Worker 1 | . . 1 . Swarmer 6 | . 3 3 . Grunt 2 | . 2 . . Sentry 2 | . . 2 . Demolisher 1 | . . 1 . Assembled 12 | . . 12 . Best Kill Streak 5 | . 5 4 . Combat Bots Only 5 | . 5 4 . Max Kills in Single Turn 1 | . 1 1 . Gunslinging . | . . . . Exploded . | . . . . Melee 1 | . . 1 . Uniques/NPCs Destroyed . | . . . . Combat | -11 -10 -10 -10 -------- Run | Scr Mat Min Exi Damage Taken 1584 | . 209 1043 332 Core 1194 | . 180 742 272 Absorbed by Shields . | . . . . Redirected to Core 759 | . 90 495 174 Core Remaining (%) 100 | 100 . . . Volleys Fired 78 | . 15 63 . Largest 2 | . 2 2 . Hottest 130 | . 130 130 . Shots Fired 150 | . 30 120 . Gun 150 | . 30 120 . Cannon . | . . . . Launcher . | . . . . Special . | . . . . Kinetic . | . . . . Thermal 150 | . 30 120 . Explosive . | . . . . Electromagnetic . | . . . . Robot Hit Streak 16 | . 8 16 . Robot Miss Streak 11 | . 4 11 . Penetration Max . | . . . . Secondary Targets 3 | . 2 1 . Max Gunslinging Chain 1 | . 1 1 . Shots Hit Robots 141 | . 24 109 8 Core Hits 116 | . 8 104 4 Critical Hits . | . . . . Critical Kills . | . . . . Critical Parts Destroyed . | . . . . Melee Attacks 8 | . . . 8 Impact . | . . . . Slashing 8 | . . . 8 Piercing . | . . . . Sneak Attacks 2 | . . . 2 Combat Hostiles . | . . . . Follow-up Attacks 1 | . . . 1 Damage Inflicted 1567 | . 283 855 429 Guns 1109 | . 283 826 . Cannons . | . . . . Explosions . | . . . . Melee 429 | . . . 429 Ramming 29 | . . 29 . Kinetic . | . . . . Thermal 1109 | . 283 826 . Explosive . | . . . . Electromagnetic . | . . . . Impact . | . . . . Slashing 429 | . . . 429 Piercing . | . . . . Highest Corruption 2 | . . 2 2 Average Corruption 2 | . . 2 2 Corruption Purged . | . . . . Effects 1 | . . 1 . Energy Discharges 1 | . . 1 . Overload Shots . | . . . . Overflow Damage . | . . . . Projectiles . | . . . . Explosions . | . . . . Melee . | . . . . Knockbacks . | . . . . Impact . | . . . . Kinetic . | . . . . Secondary . | . . . . Self-Inflicted Damage 12 | . . 12 . Shots . | . . . . Rammed 15 | . . 15 . Targets Rammed 15 | . . 15 . Kicked . | . . . . Crushed . | . . . . Highest Temperature 589 | . 261 589 . Average Temperature 191 | . 102 211 . Received Heat Transfer 445 | . 69 356 20 Effects 14 | . . 14 . Shutdowns 3 | . . 3 . Energy Bleed 3 | . . 3 . Interference 7 | . . 7 . Short Circuit 1 | . . 1 . Siege Activations . | . . . . Robots Corrupted . | . . . . Combat Hostiles . | . . . . Parts Fried . | . . . . Impact Corruptions . | . . . . Robots Melted 1 | . 1 . . Combat Hostiles 1 | . 1 . . Parts Melted 3 | . 2 1 . Heat Transferred 1660 | . 640 1020 . Parts Sabotaged . | . . . . Parts Stolen . | . . . . Parts Stripped . | . . . . Power Chain Reactions . | . . . . Missiles Intercepted . | . . . . Alert | -11 -10 -10 -10 ------- Run | Scr Mat Min Exi Peak Influence 233 | . 152 233 . Initial 58 | . . 58 . Average 117 | . 110 124 . Maximum Alert Level 1 | . . 1 . Low Security (%) 79 | 100 100 73 . Level 1 20 | . . 26 . Level 2 . | . . . . Level 3 . | . . . . Level 4 . | . . . . Level 5 . | . . . . High Security . | . . . . Max Security . | . . . . Squads Dispatched . | . . . . Investigation . | . . . . Extermination . | . . . . Reinforcement . | . . . . Assault . | . . . . Garrison . | . . . . Intercept . | . . . . Construction Impeded . | . . . . Haulers Reinforced . | . . . . Stealth | -11 -10 -10 -10 --------- Run | Scr Mat Min Exi Distress Signals . | . . . . Communications Jammed . | . . . . Distress Signals . | . . . . Times Spotted 35 | . 5 24 6 Peak Tracking Total 9 | . 3 6 9 Tactical Retreats 1 | . . 1 . Traps | -11 -10 -10 -10 ------- Run | Scr Mat Min Exi Traps Triggered . | . . . . Indirectly . | . . . . Trap Hack Attempts . | . . . . Triggered . | . . . . Disarmed . | . . . . Reprogrammed . | . . . . Reused . | . . . . Traps Extracted . | . . . . Installed . | . . . . Triggered . | . . . . Machines | -11 -10 -10 -10 ---------- Run | Scr Mat Min Exi Machines Disabled . | . . . . Max in Single Turn . | . . . . Machines Sabotaged . | . . . . Garrisons Compromised . | . . . . Overloaded Fab Kills . | . . . . Fab Network Shutdowns . | . . . . Hacking | -11 -10 -10 -10 --------- Run | Scr Mat Min Exi Machines Accessed 4 | . 3 . 1 Terminals 3 | . 3 . . Fabricators . | . . . . Repair Stations . | . . . . Recycling Units . | . . . . Scanalyzers . | . . . . Garrison Access . | . . . . Total Hacks 12 | . 11 . 1 Successful 9 | . 8 . 1 Failed 3 | . 3 . . Catastrophic . | . . . . Database Lockouts . | . . . . Manual 9 | . 8 . 1 Terminals 11 | . 11 . . Fabricators . | . . . . Repair Stations . | . . . . Recycling Units . | . . . . Scanalyzers . | . . . . Garrison Access . | . . . . Terminal Hacks 7 | . 6 . 1 Robot Analysis 2 | . 2 . . Prototype ID Bank 1 | . 1 . . Terminal Index 1 | . 1 . . Alert Level 1 | . 1 . . Hauler Manifests 1 | . 1 . . EX-Prototype ID Bank 1 | . . . 1 Fabricator Hacks . | . . . . Repair Station Hacks . | . . . . Recycling Unit Hacks . | . . . . Scanalyzer . | . . . . Garrison Access Hacks . | . . . . Unauthorized Hacks 2 | . 2 . . Terminals 2 | . 2 . . Botnet 2 | . 2 . . Fabricators . | . . . . Repair Stations . | . . . . Recycling Units . | . . . . Scanalyzers . | . . . . Garrison Access . | . . . . Data Cores Recovered . | . . . . Used . | . . . . Hacking Detections 3 | . 3 . . Full Trace Events . | . . . . Feedback Events . | . . . . Feedback Blocked . | . . . . Robot Schematics Acquired . | . . . . Robots Built . | . . . . Matter . | . . . . Time . | . . . . Total Robot Build Rating . | . . . . Part Schematics Acquired . | . . . . Parts Built . | . . . . Matter . | . . . . Time . | . . . . Total Part Build Rating . | . . . . Parts Repaired . | . . . . Time . | . . . . Parts Recycled . | . . . . Recycled Matter . | . . . . Retrieved Matter . | . . . . Retrieved Components . | . . . . Parts Scanalyzed . | . . . . Part Schematics Acquired . | . . . . Parts Damaged . | . . . . Bothacking | -11 -10 -10 -10 ------------ Run | Scr Mat Min Exi Used RIF Installer . | . . . . Robots Hacked . | . . . . Non-combat . | . . . . Combat . | . . . . Robot Hacks Applied . | . . . . Relay Couplers Released . | . . . . Robots Rewired . | . . . . Allies Hacked . | . . . . Hacks Repelled . | . . . . Allies | -11 -10 -10 -10 -------- Run | Scr Mat Min Exi Total Allies . | . . . . Largest Group . | . . . . Highest-Rated Group . | . . . . Highest-Rated Ally . | . . . . Total Orders . | . . . . Ally Attacks . | . . . . Total Damage . | . . . . Kills . | . . . . Allies Corrupted . | . . . . Allies Melted . | . . . . Intel | -11 -10 -10 -10 ------- Run | Scr Mat Min Exi Robot Analysis Total 2 | . 2 . . Derelict Logs Recovered . | . . . . Drone Launches . | . . . . Drone Recoveries . | . . . . Exploration | -11 -10 -10 -10 ------------- Run | Scr Mat Min Exi Turns Passed 912 | 26 165 601 120 Spaces Moved 818 | 44 142 370 262 Core 330 | 44 78 208 . Treads . | . . . . Legs . | . . . . Wheels . | . . . . Hover . | . . . . Flight 488 | . 64 162 262 Fastest Speed 37 | 50 40 37 37 Average Speed 67 | 50 59 93 37 Slowest Speed 150 | 50 150 150 37 Overloaded Moves . | . . . . Propulsion Burnouts . | . . . . Robots Hopped 6 | . 3 3 . Cave-ins Triggered . | . . . . Exploration Rate (%) 31 | 3 32 48 43 Regions Visited 3 Branch Regions 2 Pre-discovered Areas . | . . . . Known Exits Taken 1 | . 1 . . Unknown Exits Taken 2 | 1 . 1 . Scrap Searched . | . . . . Spaces Dug . | . . . . Terrain Destroyed . | . . . . Melee . | . . . . Projectile . | . . . . AOE . | . . . . Terrain Rammed . | . . . . Walls Destroyed . | . . . . Machines Disabled . | . . . . Actions | -11 -10 -10 -10 --------- Run | Scr Mat Min Exi Total 1011 | 46 188 499 278 Wait 58 | . 20 38 . Move 804 | 43 136 363 262 Hop 5 | . 2 3 . Pick Up 2 | . 1 . 1 Fast Attach 14 | 3 4 4 3 Attach 1 | . . . 1 Detach 1 | . . 1 . Swap 4 | . 3 1 . Drop 10 | . 3 3 4 Fire 78 | . 15 63 . Melee 7 | . . . 7 Ram 15 | . . 15 . Kick . | . . . . Crush . | . . . . Escape Stasis . | . . . . Rewire . | . . . . Trap . | . . . . Miscellaneous 12 | . 4 8 . Route ------- -11/Scrapyard -10/Materials -10/Mines (discovered 2 exits: *Mat / *Exi) -10/Exiles History --------- Turn | Location | Event 3 | -11/Scrapyard | Discovered new exit (range 15) 7 | -11/Scrapyard | Upgraded with Utility slot (x2) 7 | -11/Scrapyard | Upgraded with Weapon slot (x1) 27 | -11/Scrapyard | Entered Materials 128 | -10/Materials | Discovered new exit (range 8) 174 | -10/Materials | Identified exit to Mines 192 | -10/Materials | Entered Mines 194 | -10/Mines | Met a Derelict bent on vengeance 263 | -10/Mines | Assembled infested the area 278 | -10/Mines | Core integrity fell below 50% 280 | -10/Mines | Reached level 2 295 | -10/Mines | Discovered new exit (range 7) 301 | -10/Mines | Received a Rocket Launcher from a helpful Derelict 304 | -10/Mines | Identified exit to Materials 315 | -10/Mines | Build established: Mutant 349 | -10/Mines | Found a damaged Exp. Sensor Array with a note attached 353 | -10/Mines | Found Prototype Device 353 | -10/Mines | Identified Exp. Sensor Array 475 | -10/Mines | Upgraded with Propulsion slot (x1) 627 | -10/Mines | Core integrity fell below 20% 792 | -10/Mines | Deemed a non-threat by the Exiles lab entrance 792 | -10/Mines | Discovered new exit (range 5) 793 | -10/Mines | Entered Exiles 802 | -10/Exiles | Met 8R-AWN 809 | -10/Exiles | Met EX-HEX 822 | -10/Exiles | Met EX-BIN 841 | -10/Exiles | Aligned with FarCom system 841 | -10/Exiles | Given EX-Vault access code 850 | -10/Exiles | Opened EX-Vault 852 | -10/Exiles | Found Longsword +1 859 | -10/Exiles | Found 0b10 Alert Chip 867 | -10/Exiles | Found Skeleton Box 877 | -10/Exiles | Warned to stay clear of 0b10 Research branches 900 | -10/Exiles | Attacked by the Exiles 913 | -10/Exiles | Destroyed by as-19625 with Assembled Blade Last Messages --------------- 00901_ Penetrated by HV Slug. 00901_ HV Slug penetrates Wall. 00903_ Penetrated by HV Slug. 00903_ HV Slug penetrates Wall. 00904_ Penetrated by HV Slug. 00904_ HV Slug penetrates Wall. 00905_ Weapon Shielding destroyed. 00906_ HV Slug penetrates Wall. 00906_ HV Slug penetrates Machine. 00906_ Machine disabled. 00907_ Penetrated by HV Slug. 00907_ HV Slug penetrates Wall. 00909_ Penetrated by HV Slug. 00909_ HV Slug penetrates Wall. 00910_ HV Slug penetrates Machine. 00910_ Machine disabled. 00912_ Penetrated by HV Slug. 00912_ HV Slug penetrates as-74477. 00912_ as-74477 suffers critical hit. 00912_ as-74477 destroyed. Map ----- +----------------------------------------------------+ | ""#??????????????????????????????????????????????? | | ""#??????????????????????????????????????????????? | | ""#??????????????????????????????????????????????? | | ""#??????????????????????????????????????????????? | | ""#??????????????????????????????????????????????? | | ""#??????????????????????????????????????????????? | | ""#??????????????????????????????????????????????? | | ""#??????????????????????????????????????????????? | | """??????????????????????????????????????????????? | | ""#??????????????????????????????????????????????? | | """??????????????????????????????????????????????? | | #??????????????????????????????????????????????? | | ""#??????????????????????????????????????????????? | | ###??????????????????????????????????????????????? | | ?????????????????????????????????????????????????? | | ?????????????????????????????????????????????????? | | ?????????????????????????????????????????????????? | | #######?????????????????????????????????????? ???? | | """"""""##??????????????????????????????????? ?? | | """ """"##?????????????????????????????????# #? | | "" " #???????????????????????????????## ## | | " """#???????????????????????????????# # | | " "#???????????#####???????????????# ? | | " "##?????????##" #??????????????## ? | | ""###???????#" g #?????????????## #?? | | """#??????##" a@##????????????# #?? | | "#????### aa%###????????### #??? | | ##???# ########## #??? | | ##?## a #""""## #???? | | ### * ##??? | | ## * #??? | | #### ##?? | | " #?#" """#### ### | | #"""##?#######??#### * # | | ? ######??????????????##### | | ##???????????????????????### | | " ##??????????????????????????### | | """ ""#?????????????????????????????### | | ""#" "##??????????????????????????????#" | | """##"""""""##???????????????????????????????#### | | ""###########???????????????????????????????????# | | ###?????????????????????????????????????????????## | | ?????????????????????????????????????????????????# | | ?????????????????????????????????????????????????? | | ?????????????????????????????????????????????????? | | ?????????????????????????????????????????????????? | | ?????????????????????????????????????????????????? | | ?????????????????????????????????????????????????? | | ?????????????????????????????????????????????????? | | ?????????????????????????????????????????????????? | +----------------------------------------------------+ Best States ------------- Heat Dissipation 31 Energy Generation 12 Energy Capacity 365 Matter Stores 300 Matter Capacity 300 Sight Range 16 Robot Scan Range 30 Terrain Scan Density 10 Armor Coverage 150 Propulsion Shielding 33 Weapon Shielding 33 Evasion (%) 62 Offensive Hacking 10 Defensive Hacking 5 Item Schematics ----------------- None Robot Schematics ------------------ None Fabricated ------------ Nothing Alien Tech Used ----------------- None Achievements -------------- None Challenges ------------ None RPGLIKE | -11 -10 -10 -10 --------- Run | Scr Mat Min Exi Levels Raised 1 | . . 1 . XP Earned 5150 | 3000 600 1200 350 XP Spent 4485 | 2950 50 1485 . Upgrades 18 | 8 1 9 . Propulsion Slot 1 | . . 1 . Utility Slot 2 | 2 . . . Weapon Slot 1 | 1 . . . Core Integrity 7 | . . 7 . Heat Dissipation 1 | . 1 . . Mass Support 2 | 1 . 1 . Inventory Capacity 1 | 1 . . . Hack Attack % 2 | 2 . . . Hack Defense % 1 | 1 . . . Protomatter Created 78 | . 24 54 . Integrity Restored 234 | . 72 162 . Core 234 | . 72 162 . Protomatter Decayed 78 | . . 78 . Game ------ Seed LegLargeTorch Manual? 0 Play Time 00:13:01 Cumulative 259.2 hours Start 2020.09.16 @ 22:11:10 End 2020.09.16 @ 22:32:15 Sessions 1 Manual Loads 0 Difficulty Rogue Special Mode Winter2019/RPGLIKE Game No. 262 Rogue 262 Adventurer 0 Explorer 0 Win Type - Total 13 Types 9/0/3/1/0/0/0/0/0 Lore% 82 Gallery% 89 Achievement% 73 Wizard Run 0 Options --------- ASCII 0 Keyboard 1 Movement Numpad Keybinds 0 Fullscreen 1 Font 18/SmallcapsGlow Map View 76x50 Tactical HUD 1 Map Filters NONE Filters NONE Steam 1 RUN: cd66d4e4-e2fe-4e0f-b89e-3c215df7999c